Cogmind - Beta 14 @@@ ROGUE MODE // 2024.08.12 @ 13:35:09 Player: APerTAS Result: Core destroyed Performance ------------- Evolutions (1) 500 Regions Visited (3) 600 Robots Destroyed (3) 15 Value Destroyed (69) 69 Prototype IDs (0) 0 Alien Tech Used (0) 0 Bonus (0) 0 TOTAL SCORE: 1184 Bonus ------- None Cogmind --------- Core Integrity 0/400 Matter 255/300 Energy 99/100 System Corruption 3% Temperature Cool (0) Movement Core (50) Location -9/Storage Parts ------- > --- POWER (1) -------- (None) > --- PROPULSION (2) --- (None) > --- UTILITY (2) ------ (None) > --- WEAPON (4) ------- (None) > --- INVENTORY (5) ---- (None) Peak State ------------ > --- POWER ------------ (None) > --- PROPULSION ------- (None) > --- UTILITY ---------- (None) > --- WEAPON ----------- Grenade Launcher > --- INVENTORY -------- (None) [Rating: 1] Favorites ----------- Power None Propulsion None Utility None Weapon Grenade Launcher Launcher Grenade Launcher Build | -11 -10 -9 -9 ------- Run | Yrd Mat Mat Sto Slots Evolved 2 | . . 2 . Power . | . . . . Propulsion . | . . . . Utility . | . . . . Weapon 2 | . . 2 . Parts Attached 1 | . 1 . . Power . | . . . . Engine . | . . . . Core . | . . . . Reactor . | . . . . Propulsion . | . . . . Treads . | . . . . Leg . | . . . . Wheel . | . . . . Hover . | . . . . Flight . | . . . . Utility . | . . . . Device . | . . . . Storage . | . . . . Processor . | . . . . Hackware . | . . . . Protection . | . . . . Artifact . | . . . . Weapon 1 | . 1 . . Energy Gun . | . . . . Energy Cannon . | . . . . Ballistic Gun . | . . . . Ballistic Cannon . | . . . . Launcher 1 | . 1 . . Special Weapon . | . . . . Impact Weapon . | . . . . Slashing Weapon . | . . . . Piercing Weapon . | . . . . Special Melee Weapon . | . . . . Unidentified Prototypes . | . . . . Parts Lost 1 | . . 1 . Power . | . . . . Propulsion . | . . . . Utility . | . . . . Weapon 1 | . . 1 . Highest Loss Streak 1 | . . 1 . To Critical Strikes . | . . . . Average Slot Usage (%) 6 | . 14 2 . Launcher 6 | . 14 2 . Peak Build Rating 1 | . 1 1 . Average Rating . | . . . . On Entrance . | . . 1 . Naked Turns 97 | . 4 34 59 Heaviest Build 3 | . 3 3 . Greatest Support 3 | 3 3 3 3 Greatest Overweight (x) . | . . . . Average Overweight (x) . | . . . . Largest Inventory Capacity 5 | 5 5 5 5 Average Capacity 5 | 5 5 5 5 Most Carried . | . . . . Average Carried . | . . . . Final Capacity 5 | 5 5 5 5 Final Carried . | . . . . Class Distribution -------------------- 100% | Mutant Dominant Class ---------------- Mutant | -10/Materials Mutant | -9/Materials Mutant | -9/Storage Resources | -11 -10 -9 -9 ----------- Run | Yrd Mat Mat Sto Matter Collected 164 | 114 50 . . Remotely . | . . . . Salvage Created 60 | . 60 . . Parts 4 | . 4 . . Haulers Intercepted 1 | . 1 . . Recyclers Shooed . | . . . . Parts Field Recycled . | . . . . Retrieved Matter . | . . . . Parts Self-Destructed . | . . . . Prevented . | . . . . Kills | -11 -10 -9 -9 ------- Run | Yrd Mat Mat Sto Combat Hostiles Destroyed . | . . . . Classes Destroyed 3 | . 3 . . Worker 1 | . 1 . . Hauler 1 | . 1 . . Operator 1 | . 1 . . Best Kill Streak 3 | . 3 . . Combat Bots Only . | . . . . Max Kills in Single Turn 1 | . 1 . . Gunslinging . | . . . . Exploded . | . . . . Melee . | . . . . Uniques/NPCs Destroyed . | . . . . Combat | -11 -10 -9 -9 -------- Run | Yrd Mat Mat Sto Hostile Shots Fired 56 | . 4 35 17 Missed 16 | . 2 9 5 Damage Taken 519 | . 95 283 141 Core 458 | . 47 270 141 Absorbed by Shields . | . . . . Core Remaining (%) 90 | 100 81 . . Volleys Fired 4 | . 3 1 . Largest 1 | . 1 1 . Hottest 30 | . 30 30 . Shots Fired 4 | . 3 1 . Gun . | . . . . Cannon . | . . . . Launcher 4 | . 3 1 . Special . | . . . . Kinetic . | . . . . Thermal . | . . . . Explosive 4 | . 3 1 . Electromagnetic . | . . . . Robot Hit Streak 4 | . 3 4 . Robot Miss Streak . | . . . . Penetration Max . | . . . . Secondary Targets . | . . . . Shots Hit Robots 4 | . 3 1 . Core Hits 6 | . 5 1 . Critical Kills . | . . . . Critical Parts Destroyed . | . . . . Critical Strikes . | . . . . Melee Attacks . | . . . . Impact . | . . . . Slashing . | . . . . Piercing . | . . . . Sneak Attacks . | . . . . Combat Hostiles . | . . . . Follow-up Attacks . | . . . . Damage Inflicted 291 | . 204 54 33 Guns . | . . . . Cannons . | . . . . Explosions 226 | . 204 22 . Melee . | . . . . Ramming 65 | . . 32 33 Kinetic . | . . . . Thermal . | . . . . Explosive 226 | . 204 22 . Electromagnetic . | . . . . Impact . | . . . . Slashing . | . . . . Piercing . | . . . . Highest Corruption 3 | . . . 3 Average Corruption 1 | . . . 1 Corruption Purged . | . . . . Corruption Blocked . | . . . . Overload Shots . | . . . . Overflow Damage . | . . . . Projectiles . | . . . . Explosions . | . . . . Melee . | . . . . Knockbacks . | . . . . Impact . | . . . . Kinetic . | . . . . Secondary . | . . . . Self-Inflicted Damage 111 | . 73 14 24 Shots 2 | . 2 . . Rammed 11 | . . 6 5 Targets Rammed 11 | . . 6 5 Kicked . | . . . . Crushed . | . . . . Highest Temperature . | . . . . Average Temperature . | . . . . Received Heat Transfer 93 | . 12 54 27 Siege Activations . | . . . . Robots Corrupted . | . . . . Combat Hostiles . | . . . . Parts Fried . | . . . . Impact Corruptions . | . . . . Robots Melted . | . . . . Combat Hostiles . | . . . . Parts Melted . | . . . . Heat Transferred . | . . . . Parts Sabotaged . | . . . . Parts Stolen . | . . . . Parts Stripped . | . . . . Power Chain Reactions . | . . . . Alert | -11 -10 -9 -9 ------- Run | Yrd Mat Mat Sto Peak Influence 169 | . 169 111 76 Initial 70 | . . 70 46 Average 78 | . 107 85 49 Maximum Alert Level . | . . . . Low Security (%) 100 | 100 100 100 100 Level 1 . | . . . . Level 2 . | . . . . Level 3 . | . . . . Level 4 . | . . . . Level 5 . | . . . . High Security . | . . . . Max Security . | . . . . Squads Dispatched 1 | . 1 . . Investigation . | . . . . Extermination . | . . . . Reinforcement 1 | . 1 . . Assault . | . . . . Garrison . | . . . . Intercept . | . . . . Searches Triggered . | . . . . Construction Impeded . | . . . . Haulers Reinforced . | . . . . Active Scanning Responses . | . . . . Cargo Convoy Interrupts . | . . . . Stealth | -11 -10 -9 -9 --------- Run | Yrd Mat Mat Sto Distress Signals 2 | . . 1 1 Communications Jammed . | . . . . Distress Signals . | . . . . Times Spotted 20 | . 3 8 9 Peak Tracking Total 13 | . 2 13 9 Tactical Retreats 1 | . . . 1 Traps | -11 -10 -9 -9 ------- Run | Yrd Mat Mat Sto Traps Triggered 1 | . . 1 . Indirectly . | . . . . Trap Hack Attempts . | . . . . Triggered . | . . . . Disarmed . | . . . . Reprogrammed . | . . . . Reused . | . . . . Traps Extracted . | . . . . Installed . | . . . . Triggered . | . . . . Machines | -11 -10 -9 -9 ---------- Run | Yrd Mat Mat Sto Machines Disabled 5 | . 5 . . Max in Single Turn 2 | . 2 . . Machines Repaired . | . . . . Machines Dismantled . | . . . . Machines Sabotaged . | . . . . Overloaded Fab Kills . | . . . . Hacking | -11 -10 -9 -9 --------- Run | Yrd Mat Mat Sto Machines Accessed 1 | . . . 1 Terminals 1 | . . . 1 Fabricators . | . . . . Repair Stations . | . . . . Recycling Units . | . . . . Scanalyzers . | . . . . Garrison Access . | . . . . Total Hacks 5 | . . . 5 Successful 1 | . . . 1 Failed 4 | . . . 4 Catastrophic 1 | . . . 1 Database Lockouts . | . . . . Manual 5 | . . . 5 Terminals 5 | . . . 5 Fabricators . | . . . . Repair Stations . | . . . . Recycling Units . | . . . . Scanalyzers . | . . . . Garrison Access . | . . . . Terminal Hacks . | . . . . Fabricator Hacks . | . . . . Repair Station Hacks . | . . . . Recycling Unit Hacks . | . . . . Scanalyzer . | . . . . Garrison Access Hacks . | . . . . Unauthorized Hacks 1 | . . . 1 Terminals 1 | . . . 1 Botnet 1 | . . . 1 Fabricators . | . . . . Repair Stations . | . . . . Recycling Units . | . . . . Scanalyzers . | . . . . Garrison Access . | . . . . Data Cores Recovered . | . . . . Used . | . . . . Hacking Detections 1 | . . . 1 Full Trace Events 1 | . . . 1 Feedback Events 1 | . . . 1 Corruption 1 | . . . 1 Feedback Blocked . | . . . . Robot Schematics Acquired . | . . . . Robots Built . | . . . . Authchips . | . . . . Time . | . . . . Total Robot Build Rating . | . . . . Part Schematics Acquired . | . . . . Parts Built . | . . . . Authchips . | . . . . Time . | . . . . Total Part Build Rating . | . . . . Parts Repaired . | . . . . Time . | . . . . Parts Recycled . | . . . . Recycled Matter . | . . . . Retrieved Matter . | . . . . Retrieved Components . | . . . . Parts Scanalyzed . | . . . . Part Schematics Acquired . | . . . . Parts Damaged . | . . . . Bothacking | -11 -10 -9 -9 ------------ Run | Yrd Mat Mat Sto Used RIF Installer . | . . . . Robots Hacked . | . . . . Non-combat . | . . . . Combat . | . . . . Robot Hacks Applied . | . . . . Relay Couplers Released . | . . . . Fabnet Peak Effective % . | . . . . Robots Rewired . | . . . . Allies Hacked . | . . . . Hacks Repelled . | . . . . Allies | -11 -10 -9 -9 -------- Run | Yrd Mat Mat Sto Total Allies . | . . . . Largest Group . | . . . . Highest-Rated Group . | . . . . Highest-Rated Ally . | . . . . Total Orders . | . . . . Ally Attacks . | . . . . Total Damage . | . . . . Kills . | . . . . Allies Corrupted . | . . . . Allies Melted . | . . . . Intel | -11 -10 -9 -9 ------- Run | Yrd Mat Mat Sto Robot Analysis Total . | . . . . Derelict Logs Recovered . | . . . . Drone Launches . | . . . . Drone Recoveries . | . . . . Exploration | -11 -10 -9 -9 ------------- Run | Yrd Mat Mat Sto Turns Passed 201 | 12 81 49 59 Spaces Moved 360 | 24 147 82 107 Core 360 | 24 147 82 107 Treads . | . . . . Legs . | . . . . Wheels . | . . . . Hover . | . . . . Flight . | . . . . Fastest Speed 50 | 50 50 50 50 Average Speed 50 | 50 50 50 50 Slowest Speed 50 | 50 50 50 50 Overloaded Moves . | . . . . Propulsion Burnouts . | . . . . Robots Hopped . | . . . . Cave-ins Triggered . | . . . . Exploration Rate (%) 18 | 4 28 17 25 Regions Visited 3 Branch Regions 1 Pre-discovered Areas . | . . . . Known Exits Taken . | . . . . Unknown Exits Taken 3 | 1 1 1 . Scrap Searched . | . . . . Spaces Dug . | . . . . Terrain Destroyed 58 | . 52 6 . Melee . | . . . . Projectile . | . . . . AOE 58 | . 52 6 . Terrain Rammed 1 | . . . 1 Walls Destroyed . | . . . . Machines Disabled . | . . . . Actions | -11 -10 -9 -9 --------- Run | Yrd Mat Mat Sto Total 373 | 23 150 88 112 Wait . | . . . . Move 358 | 23 146 82 107 Hop . | . . . . Pick Up . | . . . . Fast Attach 1 | . 1 . . Attach . | . . . . Detach . | . . . . Swap . | . . . . Drop . | . . . . Fire 4 | . 3 1 . Melee . | . . . . Ram 10 | . . 5 5 Kick . | . . . . Crush . | . . . . Escape Stasis . | . . . . Rewire . | . . . . Trap . | . . . . Miscellaneous . | . . . . Route ------- -11/Scrapyard -10/Materials -9/Materials -9/Storage History --------- Turn | Location | Event 2 | -11/Scrapyard | Discovered new exit (range 16) 13 | -11/Scrapyard | Entered Materials 87 | -10/Materials | Discovered new exit (range 16) 94 | -10/Materials | Entered another Materials area 94 | -9/Materials | Evolved 2 slots: Weapon x2 130 | -9/Materials | Core integrity fell below 50% 136 | -9/Materials | Discovered new exit (range 14) 143 | -9/Materials | Entered Storage 197 | -9/Storage | Core integrity fell below 20% 202 | -9/Storage | Core destroyed Last Messages --------------- 00134_ T-07 Excavator is excavating. 00136_ EXIT=FOUND 00143_ Slammed into Y-45 Defender. LOCATION=UNKNOWN GOAL=ESCAPE 00157_ Connecting with Terminal... 00157_ Current location identified: Storage >>Trojan(Botnet) Trojan loaded successfully. Testing... Terminal linked with 0 systems. Awaiting botnet instructions. Feedback: System corruption (+1%). 00166_ Slammed into G-34 Mercenary. 00178_ Slammed into U-05 Engineer. 00198_ Slammed into S-10 Pest. 00198_ Destabilizing: System corrupted (+2). 00198_ W-16 Scout sends out distress signal. 00199_ Slammed into S-10 Pest. 00202_ Slammed into Wall. Map ----- +----------------------------------------------------+ | | | ?????????????????????????????????????????????? | | ?????????????????????????????????????????????? | | ?????????????????????????????????????????????? | | ?????????????????????????????????????????????? | | ?????????????????????????????????????????????? | | ?????????????????????????????????????????????? | | ?????????????????????????????????????????????? | | ?????????????????????????????????????????????? | | ?????????????????????????????????????????????? | | ?????????????????????????????????????????????? | | ?????????????????????????????????????????????? | | ?????????????????????????????????????????????? | | ?????????????????????????????????????????????? | | ?????????????????????????????????????????????? | | ?????????????????????????????????????????????? | | ?????????????????????????????????????????????? | | ?????????????????????????????????????????????? | | ?????????????????????????????????????????????? | | ?????????????????????????????????????????????? | | ?????????????????????????????????????????????? | | ?????????????????????????????????????????????? | | ?????????????????????????????????????????????? | | ?????????????????????????????????????????????? | | ????????????###########??????????????????????? | | ????????????# @#??????????????????????? | | ????????????# """ #??????????????????????? | | ????????????" """ * ############+###???????? | | ???????????"Y """ s# ??????? | | ??????????#"" !! s ??????? | | ??????????### != s# ??????? | | ????????????# !! # ###########??????????? | | ???????????# Y # #????????????????????? | | ???????????############ #########????????????? | | ???????????# #????????????? | | ???????????+ #????????????? | | ???????????# #????????????? | | ???????????### ##################????????????? | | ?????????????# #?????????????????????????????? | | ?????????????# ############??????????????????? | | ?????????????# ## #??????????????????? | | ???????####### ## """" #??????????????????? | | ????# + "??"" #??????????????????? | | ???????#######+## "???"" #??????????????????? | | ????????????????# "????" #??????????????????? | | ????????????????# "???" #??????????????????? | | ????????????????# """" ######?????????????? | | ????????????????# ##"""#?????????????? | | ????????????????#####+######"T"###???????????? | | ???????????????????# # #???????????? | +----------------------------------------------------+ Best States ------------- Heat Dissipation 28 Energy Generation 5 Energy Capacity 100 Matter Stores 255 Matter Capacity 300 Sight Range 16 Terrain Scan Density 10 Evasion (%) 50 Item Schematics ----------------- None Robot Schematics ------------------ None Fabricated ------------ Nothing Alien Tech Used ----------------- None Achievements -------------- None Challenges ------------ None Game ------ Seed BladeOmegaMagmablaster Manual? 0 Play Time 00:03:25 Cumulative 21.2 hours Start 2024.08.12 @ 13:32:40 End 2024.08.12 @ 13:35:09 Sessions 1 Manual Loads 0 Difficulty Rogue Special Mode None Game No. 103 Rogue 103 Adventurer 0 Explorer 0 Win Type - Total 0 Types 0/0/0/0/0/0/0/0/0 Lore% 33 Gallery% 25 Achievement% 32 Wizard Run 0 Options --------- Layout 0 ASCII 0 Keyboard 0 Movement Arrows Keybinds 0 Fullscreen 2 Font 18/Terminus Map View 76x50 Zoom Use 0% Tactical HUD 1 Map Filters NONE Filters NONE Steam 1 RUN: 60ee9647-6930-4647-9b63-2e33055286aa